Cogmind - Beta 12 *** ADVENTURER MODE // 2023.05.25 @ 11:50:14 Player: Ms. V3-11A Result: Destroyed by Enhanced Grunt with Neutron Cannon Performance ------------- Evolutions (3) 1500 Regions Visited (11) 2200 Robots Destroyed (143) 715 Value Destroyed (6111) 6111 Prototype IDs (217) 4340 Alien Tech Used (0) 0 Bonus (1784) 1784 TOTAL SCORE: 16650 Bonus ------- High Alert Combat Kills 425 Follower Combat Kills 1481 Entered Garrisons 200 Met Data Miner 300 Used Data Conduit 3000 Friendly Fire -3622 Cogmind --------- Core Integrity 0/700 Matter 194/300 Energy 57/340 System Corruption 7% Temperature Critical (614) Movement Immobile (Siege) Ox1 Location -7/Data Miner Parts ------- > --- POWER (1) -------- Particle Reactor > --- PROPULSION (4) --- Heavy Treads > --- UTILITY (5) ------ Huge Storage Unit Force Field > --- WEAPON (3) ------- Beamcaster Beamcaster > --- INVENTORY (25) --- Hybrid Deuterium Engine Medium Treads Advanced Cooling System Huge Storage Unit Matter Compressor (250) Encrypted Comm Array Hacking Suite Makeshift System Shield Component Analysis Suite Advanced Beam Rifle Advanced Beam Rifle Beamcaster Molecular Deconstructor Great Maul Great Axe Peak State ------------ > --- POWER ------------ Particle Reactor > --- PROPULSION ------- Heavy Treads Heavy Treads > --- UTILITY ---------- Improved Heat Sink Huge Storage Unit Hardened Medium Armor Plating Force Field > --- WEAPON ----------- Beamcaster Molecular Deconstructor > --- INVENTORY -------- Hybrid Deuterium Engine Medium Treads Heavy Treads Advanced Cooling System Huge Storage Unit Matter Compressor Encrypted Comm Array Hacking Suite Makeshift System Shield Component Analysis Suite Advanced Beam Rifle Advanced Beam Rifle Beamcaster Beamcaster High-powered Shotgun Great Maul Great Axe [Rating: 74] Favorites ----------- Power Heavy Ion Engine Engine Heavy Ion Engine Power Core Light Nuclear Core Reactor Particle Reactor Propulsion Light Treads Treads Light Treads Leg Improved Aluminum Leg Utility Huge Storage Unit Device Improved Heat Sink Storage Huge Storage Unit Processor Improved Signal Interpreter Hackware Hacking Suite Protection Hardened Medium Armor Plating Weapon Beamcaster Energy Gun Beamcaster Ballistic Gun High-powered Shotgun Ballistic Cannon Mini Assault Cannon Launcher Proton Missile Launcher Special Weapon Molecular Deconstructor Slashing Weapon Great Axe Build | -11 -10 -9 -8 -7 -7 -7 -7 -7 -7 -7 -7 ------- Run | Jun Mat Mat Mat Fac Was Fac Gar Fac Low Low Dat Slots Evolved 6 | . . 2 2 2 . . . . . . . Power . | . . . . . . . . . . . . Propulsion 2 | . . . 1 1 . . . . . . . Utility 3 | . . 1 1 1 . . . . . . . Weapon 1 | . . 1 . . . . . . . . . Parts Attached 107 | . 9 12 31 20 10 . 6 3 2 4 10 Power 13 | . 1 3 2 2 2 . . 1 1 . 1 Engine 10 | . . 2 2 2 2 . . 1 1 . . Core 2 | . 1 1 . . . . . . . . . Reactor 1 | . . . . . . . . . . . 1 Propulsion 29 | . 3 3 10 6 3 . 1 . . 2 1 Treads 26 | . . 3 10 6 3 . 1 . . 2 1 Leg 3 | . 3 . . . . . . . . . . Wheel . | . . . . . . . . . . . . Hover . | . . . . . . . . . . . . Flight . | . . . . . . . . . . . . Utility 28 | . 2 2 7 7 3 . 3 1 1 . 2 Device 11 | . 1 . 1 3 2 . 2 . 1 . 1 Storage 2 | . 1 . 1 . . . . . . . . Processor 1 | . . . . 1 . . . . . . . Hackware 2 | . . . 1 1 . . . . . . . Protection 12 | . . 2 4 2 1 . 1 1 . . 1 Artifact . | . . . . . . . . . . . . Weapon 37 | . 3 4 12 5 2 . 2 1 . 2 6 Energy Gun 21 | . 3 2 9 1 2 . . 1 . 1 2 Energy Cannon . | . . . . . . . . . . . . Ballistic Gun 9 | . . 2 3 2 . . 1 . . . 1 Ballistic Cannon 1 | . . . . 1 . . . . . . . Launcher 4 | . . . . 1 . . 1 . . 1 1 Special Weapon 1 | . . . . . . . . . . . 1 Impact Weapon . | . . . . . . . . . . . . Slashing Weapon 1 | . . . . . . . . . . . 1 Piercing Weapon . | . . . . . . . . . . . . Special Melee Weapon . | . . . . . . . . . . . . Unidentified Prototypes 6 | . . 2 1 1 1 . . . . . 1 Parts Lost 29 | . 2 . 8 7 . . . 2 . 3 7 Power 1 | . . . . 1 . . . . . . . Propulsion 12 | . 1 . 4 3 . . . . . 2 2 Utility 9 | . . . 2 2 . . . 1 . 1 3 Weapon 7 | . 1 . 2 1 . . . 1 . . 2 Highest Loss Streak 7 | . 2 . 4 5 . . . 1 . 3 7 To Critical Strikes 1 | . . . 1 . . . . . . . . Average Slot Usage (%) 91 | . 90 99 98 99 85 84 84 84 84 81 67 Engine 6 | . 2 3 9 6 6 7 7 7 7 7 6 Core 1 | . 10 7 . . . . . . . . . Treads 19 | . . 14 26 29 17 15 15 15 15 14 15 Leg 1 | . 28 7 . . . . . . . . . Device 12 | . 11 11 8 13 15 15 15 15 15 13 7 Storage 8 | . 14 11 9 7 7 7 7 7 7 7 7 Hackware 6 | . . . 9 7 7 7 7 7 7 7 5 Protection 7 | . . 11 8 6 7 7 7 7 7 7 14 Energy Gun 15 | . 22 22 16 15 14 15 15 15 15 14 1 Ballistic Gun 7 | . . 11 10 6 7 7 6 7 7 7 . Naked Turns . | . . . . . . . . . . . . Heaviest Build 120 | 14 52 63 111 107 114 113 117 116 119 119 120 Greatest Support 140 | 20 26 40 62 82 140 140 140 140 140 140 140 Greatest Overweight (x) 2 | . 1 2 2 1 1 . . . 1 . . Average Overweight (x) . | . . 1 1 1 . . . . . . . Largest Inventory Capacity 25 | 8 20 20 25 25 25 25 25 25 25 25 25 Average Capacity 24 | 8 16 20 24 25 25 25 25 25 25 25 25 Most Carried 25 | 5 16 20 25 25 25 25 25 25 25 25 24 Average Carried 22 | 5 8 16 23 22 24 25 24 24 24 24 22 Final Capacity 25 | 8 20 20 25 25 25 25 25 25 25 25 25 Final Carried 25 | 4 13 20 25 25 25 25 25 25 25 22 16 Class Distribution -------------------- 48% | Hacker-Tank 15% | Scavenger-Tank 13% | Hacker-Mutant 5% | Hacker-Gunner 5% | Scavenger-Mutant 3% | Mutant 3% | Tank 3% | Commander-Tank Dominant Class ---------------- Mutant | -10/Materials Scavenger-Tank | -9/Materials Scavenger-Tank | -8/Materials Hacker-Tank | -7/Factory Hacker-Tank | -7/Waste Hacker-Tank | -7/Factory Hacker-Tank | -7/Garrison Hacker-Tank | -7/Factory Hacker-Tank | -7/Lower Caves Hacker-Tank | -7/Lower Caves Hacker-Mutant | -7/Data Miner Resources | -11 -10 -9 -8 -7 -7 -7 -7 -7 -7 -7 -7 ----------- Run | Jun Mat Mat Mat Fac Was Fac Gar Fac Low Low Dat Matter Collected 3048 | 200 115 373 667 338 642 . 263 213 99 138 . Remotely . | . . . . . . . . . . . . Salvage Created 5564 | . 315 707 1760 1234 25 . 266 697 212 277 71 Parts 250 | . 15 35 74 61 3 . 7 23 12 16 4 Haulers Intercepted 3 | . . 3 . . . . . . . . . Recyclers Shooed 2 | . . 2 . . . . . . . . . Parts Field Recycled . | . . . . . . . . . . . . Retrieved Matter . | . . . . . . . . . . . . Parts Self-Destructed 28 | . . . . . . . . . 16 12 . Prevented 6 | . . . . . . . . . . 6 . Kills | -11 -10 -9 -8 -7 -7 -7 -7 -7 -7 -7 -7 ------- Run | Jun Mat Mat Mat Fac Was Fac Gar Fac Low Low Dat Combat Hostiles Destroyed 102 | . 8 11 30 24 . . 4 9 8 7 1 Guns 96 | . 7 11 30 21 . . 4 9 8 5 1 AOE 5 | . 1 . . 2 . . . . . 2 . Classes Destroyed 14 | . 3 3 6 1 . . . 1 . . . Worker 8 | . . 1 2 3 . . . 2 . . . Hauler 3 | . . 3 . . . . . . . . . Recycler 4 | . . . 3 1 . . . . . . . Mechanic 2 | . . . 1 1 . . . . . . . Operator 4 | . . . 2 1 . . . 1 . . . Watcher 5 | . 1 . . 3 . . . 1 . . . Swarmer 25 | . 3 . 3 7 . . . 2 7 3 . Grunt 44 | . 5 9 13 11 . . . 3 . 3 . Brawler 5 | . . . 1 2 . . . 2 . . . Duelist 7 | . . . 1 . . . 1 4 . 1 . Sentry 20 | . . 2 10 1 . . 3 3 1 . . Hunter 2 | . . . 2 . . . . . . . . Programmer 3 | . . . . 3 . . . . . . . Enhanced Grunt 1 | . . . . . . . . . . . 1 Surgeon 1 | . . . . . . . . 1 . . . Wasp 1 | . . . . . 1 . . . . . . Thug 2 | . . . . 1 . . . 1 . . . Savage 3 | . . . . . . . 1 2 . . . Butcher 1 | . . . . . . . . 1 . . . Martyr 2 | . . . . . . . . 2 . . . Best Kill Streak 11 | . 5 3 11 5 . . 1 4 4 3 1 Combat Bots Only 10 | . 4 3 10 3 . . 1 4 4 3 1 Max Kills in Single Turn 14 | . 2 1 2 2 1 . 1 14 2 2 1 Gunslinging 1 | . . . . . . . . . 1 . . Exploded 1 | . 1 . . 1 . . . . . 1 . Melee . | . . . . . . . . . . . . Uniques/NPCs Destroyed . | . . . . . . . . . . . . Combat | -11 -10 -9 -8 -7 -7 -7 -7 -7 -7 -7 -7 -------- Run | Jun Mat Mat Mat Fac Was Fac Gar Fac Low Low Dat Damage Taken 7947 | . 249 518 1601 1733 9 39 306 1231 120 356 1785 Core 918 | . 11 82 120 224 . . 13 211 11 19 227 Absorbed by Shields 654 | . . . . 15 3 15 152 225 129 98 17 Reduced by Siege Mode 229 | . . . . . . . 5 72 . 4 148 Regen/Repaired (Parts) 366 | . . . 218 . 109 . 33 6 . . . Core Remaining (%) 88 | 100 95 79 78 . . . . . . . . Volleys Fired 311 | . 24 37 79 62 1 . 35 34 10 17 12 Largest 3 | . 2 3 3 3 3 . 3 3 3 3 3 Hottest 183 | . 95 118 157 183 175 . 175 175 175 175 175 Shots Fired 741 | . 35 86 213 164 6 . 90 68 28 31 20 Gun 726 | . 35 86 213 160 6 . 88 68 28 27 15 Cannon . | . . . . . . . . . . . . Launcher 12 | . . . . 4 . . 2 . . 4 2 Special 3 | . . . . . . . . . . . 3 Kinetic 248 | . . 28 97 43 2 . 28 31 9 8 2 Thermal 424 | . 11 28 116 117 4 . 60 37 19 19 13 Explosive 4 | . . . . 4 . . . . . . . Electromagnetic 62 | . 24 30 . . . . 2 . . 4 2 Robot Hit Streak 47 | . 18 28 35 38 5 . 10 47 7 12 17 Robot Miss Streak 4 | . 3 3 2 3 3 . 4 4 2 2 2 Penetration Max . | . . . . . . . . . . . . Secondary Targets 15 | . . . 2 6 . . 1 3 3 . . Max Gunslinging Chain 1 | . . . 1 1 . . 1 1 1 . . Shots Hit Robots 541 | . 31 68 154 111 4 . 56 58 19 23 17 Core Hits 303 | . 17 30 70 63 4 . 25 58 12 13 11 Critical Kills 2 | . . 1 1 . . . . . . . . Critical Parts Destroyed 1 | . . . . . . . . 1 . . . Critical Strikes 39 | . . 2 13 7 1 . 7 6 . 2 1 Burn 36 | . . 1 12 7 1 . 7 5 . 2 1 Destroy 3 | . . 1 1 . . . . 1 . . . Melee Attacks 1 | . . . . . . . . . . . 1 Impact . | . . . . . . . . . . . . Slashing 1 | . . . . . . . . . . . 1 Piercing . | . . . . . . . . . . . . Sneak Attacks 1 | . . . . . . . . . . . 1 Combat Hostiles . | . . . . . . . . . . . . Follow-up Attacks . | . . . . . . . . . . . . Damage Inflicted 13538 | . 580 1083 2777 2933 145 . 1276 3339 424 586 395 Guns 10602 | . 455 1062 2727 2451 145 . 1276 1379 424 453 230 Cannons . | . . . . . . . . . . . . Explosions 2741 | . 125 21 . 448 . . . 1910 . 133 104 Melee 61 | . . . . . . . . . . . 61 Ramming 134 | . . . 50 34 . . . 50 . . . Kinetic 3836 | . . 309 1236 686 62 . 459 700 172 168 44 Thermal 7817 | . 239 272 1491 1765 83 . 817 2427 252 285 186 Explosive 448 | . . . . 448 . . . . . . . Electromagnetic 1242 | . 341 502 . . . . . 162 . 133 104 Impact . | . . . . . . . . . . . . Slashing 61 | . . . . . . . . . . . 61 Piercing . | . . . . . . . . . . . . Highest Corruption 7 | . . . 4 7 7 7 7 7 7 7 7 Average Corruption 5 | . . . 4 3 7 7 7 7 7 7 7 Corruption Purged . | . . . . . . . . . . . . Corruption Blocked . | . . . . . . . . . . . . Effects 233 | . . . 43 26 30 2 56 32 25 11 8 Message Errors 56 | . . . 13 6 5 . 14 6 5 3 4 Matter Fused 56 | . . . 10 9 5 . 13 7 8 3 1 Heat Flow Errors 26 | . . . 4 1 5 1 5 4 4 1 1 Energy Discharges 28 | . . . 4 4 6 1 4 5 2 2 . Parts Rejected 2 | . . . 1 . . . 1 . . . . Parts Fused 2 | . . . . . . . 1 . 1 . . Data Loss (minor) 21 | . . . 5 2 2 . 5 4 3 . . Data Loss (major) 20 | . . . 2 2 3 . 5 3 2 1 2 Misfires 11 | . . . 1 1 3 . 5 1 . . . Alerts 5 | . . . 1 1 1 . 1 1 . . . Weapon Failures 6 | . . . 2 . . . 2 1 . 1 . Overload Shots . | . . . . . . . . . . . . Overflow Damage 279 | . . . . 36 . . . 242 . . 1 Projectiles . | . . . . . . . . . . . . Explosions 277 | . . . . 36 . . . 241 . . . Melee 2 | . . . . . . . . 1 . . 1 Knockbacks . | . . . . . . . . . . . . Impact . | . . . . . . . . . . . . Kinetic . | . . . . . . . . . . . . Secondary . | . . . . . . . . . . . . Self-Inflicted Damage 486 | . 3 14 . 213 . . . 256 . . . Shots 11 | . 1 1 . 4 . . . 5 . . . Rammed 8 | . . . 3 3 . . . 2 . . . Targets Rammed 9 | . . . 3 3 . . . 3 . . . Kicked . | . . . . . . . . . . . . Crushed 1 | . . . . . . . . 1 . . . Highest Temperature 402 | . 396 145 252 340 237 69 219 187 208 198 402 Average Temperature 79 | . 197 53 53 95 85 49 63 77 72 77 182 Received Heat Transfer 2519 | . 144 297 756 636 . . 85 550 11 40 . Effects 7 | . 3 . . 1 3 . . . . . . Energy Bleed 2 | . 1 . . 1 . . . . . . . Interference 4 | . 1 . . . 3 . . . . . . Matter Decay 1 | . 1 . . . . . . . . . . Siege Activations 5 | . . . . . . . 2 1 . 1 1 Total Turns 146 | . . . . . . . 15 45 . 60 26 Longest Duration 60 | . . . . . . . 9 45 . 60 26 Robots Corrupted . | . . . . . . . . . . . . Combat Hostiles . | . . . . . . . . . . . . Parts Fried 3 | . . 3 . . . . . . . . . Impact Corruptions 1 | . . . . . . . . 1 . . . Robots Melted 1 | . . . . 1 . . . . . . . Combat Hostiles 1 | . . . . 1 . . . . . . . Parts Melted 22 | . . . 12 7 . . 1 2 . . . Heat Transferred 14953 | . 483 827 3959 3441 222 . 1924 2469 444 629 555 Parts Sabotaged . | . . . . . . . . . . . . Parts Stolen . | . . . . . . . . . . . . Parts Stripped . | . . . . . . . . . . . . Power Chain Reactions 3 | . 2 1 . . . . . . . . . Missiles Intercepted . | . . . . . . . . . . . . Alert | -11 -10 -9 -8 -7 -7 -7 -7 -7 -7 -7 -7 ------- Run | Jun Mat Mat Mat Fac Was Fac Gar Fac Low Low Dat Peak Influence 1760 | . 263 183 359 332 6 73 1760 1267 . . . Initial 800 | . . 23 . 50 . 3 44 800 . . . Average 361 | . 122 58 142 108 . 6 1087 1111 . . . Maximum Alert Level 5 | . 1 . 1 1 . . 5 4 . . . Low Security (%) 64 | 100 67 100 71 89 100 100 4 . . . . Level 1 10 | . 32 . 28 10 . . . . . . . Level 2 . | . . . . . . . 1 . . . . Level 3 13 | . . . . . . . 57 38 . . . Level 4 10 | . . . . . . . 26 61 . . . Level 5 1 | . . . . . . . 9 . . . . High Security . | . . . . . . . . . . . . Max Security . | . . . . . . . . . . . . Squads Dispatched 17 | . 1 1 5 7 . . . 3 . . . Investigation 5 | . 1 1 . 1 . . . 2 . . . Extermination 3 | . . . . 3 . . . . . . . Reinforcement 5 | . . . 3 2 . . . . . . . Assault 1 | . . . . . . . . 1 . . . Garrison 3 | . . . 2 1 . . . . . . . Intercept . | . . . . . . . . . . . . Searches Triggered . | . . . . . . . . . . . . Construction Impeded . | . . . . . . . . . . . . Haulers Reinforced 1 | . . . . 1 . . . . . . . Active Scanning Responses . | . . . . . . . . . . . . Cargo Convoy Interrupts . | . . . . . . . . . . . . Stealth | -11 -10 -9 -8 -7 -7 -7 -7 -7 -7 -7 -7 --------- Run | Jun Mat Mat Mat Fac Was Fac Gar Fac Low Low Dat Distress Signals 8 | . . 2 4 2 . . . . . . . Communications Jammed . | . . . . . . . . . . . . Distress Signals . | . . . . . . . . . . . . Times Spotted 185 | . 13 13 48 37 1 1 34 18 7 9 4 Peak Tracking Total 14 | . 5 3 9 5 1 1 14 5 3 4 4 Tactical Retreats 4 | . 1 . 1 . . . 1 . . 1 . Traps | -11 -10 -9 -8 -7 -7 -7 -7 -7 -7 -7 -7 ------- Run | Jun Mat Mat Mat Fac Was Fac Gar Fac Low Low Dat Traps Triggered 9 | . 1 . 1 3 . . 4 . . . . Indirectly . | . . . . . . . . . . . . Trap Hack Attempts . | . . . . . . . . . . . . Triggered . | . . . . . . . . . . . . Disarmed . | . . . . . . . . . . . . Reprogrammed . | . . . . . . . . . . . . Reused . | . . . . . . . . . . . . Traps Extracted . | . . . . . . . . . . . . Installed . | . . . . . . . . . . . . Triggered . | . . . . . . . . . . . . Machines | -11 -10 -9 -8 -7 -7 -7 -7 -7 -7 -7 -7 ---------- Run | Jun Mat Mat Mat Fac Was Fac Gar Fac Low Low Dat Machines Disabled 33 | . . . 2 11 . . 12 7 1 . . Max in Single Turn 7 | . . . 1 3 . . 1 7 1 . . Garrison Access 3 | . . . 1 1 . . . 1 . . . Garrison Relay 6 | . . . . . . . 6 . . . . Phase Generator 1 | . . . . . . . 1 . . . . Machines Repaired . | . . . . . . . . . . . . Machines Sabotaged . | . . . . . . . . . . . . Overloaded Fab Kills . | . . . . . . . . . . . . Hacking | -11 -10 -9 -8 -7 -7 -7 -7 -7 -7 -7 -7 --------- Run | Jun Mat Mat Mat Fac Was Fac Gar Fac Low Low Dat Machines Accessed 33 | . 4 2 7 2 . 1 4 9 . . 4 Terminals 18 | . 4 1 4 1 . . 4 4 . . . Fabricators 3 | . . . . . . . . 3 . . . Repair Stations 2 | . . . 1 . . . . 1 . . . Recycling Units . | . . . . . . . . . . . . Scanalyzers 2 | . . 1 1 . . . . . . . . Garrison Access 4 | . . . 1 1 . 1 . 1 . . . Total Hacks 126 | . 14 16 31 4 . 1 9 21 . . 30 Successful 97 | . 9 16 23 1 . 1 4 13 . . 30 Failed 28 | . 5 . 7 3 . . 5 8 . . . Catastrophic 3 | . . . . 1 . . . 2 . . . Database Lockouts 1 | . . . 1 . . . . . . . . Manual 39 | . 8 2 10 2 . . . 16 1 . . Terminals 55 | . 14 4 18 2 . . 9 8 . . . Fabricators 9 | . . . . . . . . 9 . . . Repair Stations 11 | . . . 10 . . . . 1 . . . Recycling Units . | . . . . . . . . . . . . Scanalyzers 14 | . . 12 2 . . . . . . . . Garrison Access 7 | . . . 1 2 . 1 . 3 . . . Terminal Hacks 53 | . 6 3 8 . . . 4 2 . . 30 Record 11 | . . . . . . . . . . . 11 Part Schematic 11 | . . . . . . . . . . . 11 Robot Schematic 6 | . . . 1 . . . . . . . 5 Robot Analysis 5 | . 2 1 2 . . . . . . . . Prototype ID Bank 5 | . 1 . 1 . . . . . . . 3 Open Door 1 | . . . . . . . 1 . . . . Branch Access Points 1 | . . . . . . . . 1 . . . Emergency Access Points 1 | . . . . . . . 1 . . . . Terminal Index 1 | . . . . . . . . 1 . . . Scanalyzer Index 2 | . 1 1 . . . . . . . . . Unreport Threat 1 | . . . 1 . . . . . . . . Hauler Manifests 1 | . 1 . . . . . . . . . . Registered Components 2 | . . 1 1 . . . . . . . . Zone Layout 3 | . 1 . 2 . . . . . . . . Garrison Registry 1 | . . . . . . . 1 . . . . Patrol Navigation 1 | . . . . . . . 1 . . . . Fabricator Hacks 1 | . . . . . . . . 1 . . . Build 1 | . . . . . . . . 1 . . . Repair Station Hacks 10 | . . . 10 . . . . . . . . Scan Component 5 | . . . 5 . . . . . . . . Repair 5 | . . . 5 . . . . . . . . Recycling Unit Hacks . | . . . . . . . . . . . . Scanalyzer 14 | . . 12 2 . . . . . . . . Insert Component 7 | . . 6 1 . . . . . . . . Analyze 7 | . . 6 1 . . . . . . . . Garrison Access Hacks 4 | . . . 1 1 . 1 . 1 . . . Unlock Access 1 | . . . . . . 1 . . . . . Seal Access 3 | . . . 1 1 . . . 1 . . . Unauthorized Hacks 15 | . 3 1 2 . . . . 9 . . . Terminals 9 | . 3 1 2 . . . . 3 . . . Botnet 9 | . 3 1 2 . . . . 3 . . . Fabricators 6 | . . . . . . . . 6 . . . Liberate 3 | . . . . . . . . 3 . . . Fabnet 3 | . . . . . . . . 3 . . . Repair Stations . | . . . . . . . . . . . . Recycling Units . | . . . . . . . . . . . . Scanalyzers . | . . . . . . . . . . . . Garrison Access . | . . . . . . . . . . . . Data Cores Recovered . | . . . . . . . . . . . . Used . | . . . . . . . . . . . . Hacking Detections 22 | . 4 1 5 1 . . 2 9 . . . Full Trace Events 3 | . . . . 1 . . . 2 . . . Feedback Events . | . . . . . . . . . . . . Feedback Blocked . | . . . . . . . . . . . . Robot Schematics Acquired 6 | . . . 1 . . . . . . . 5 Robots Built 3 | . . . . . . . . 3 . . . Authchips . | . . . . . . . . . . . . Time 67 | . . . . . . . . 67 . . . Total Robot Build Rating 12 | . . . . . . . . 12 . . . Part Schematics Acquired 18 | . . 6 1 . . . . . . . 11 Parts Built . | . . . . . . . . . . . . Authchips . | . . . . . . . . . . . . Time . | . . . . . . . . . . . . Total Part Build Rating . | . . . . . . . . . . . . Parts Repaired 5 | . . . 5 . . . . . . . . Time 166 | . . . 166 . . . . . . . . Parts Recycled . | . . . . . . . . . . . . Recycled Matter . | . . . . . . . . . . . . Retrieved Matter . | . . . . . . . . . . . . Retrieved Components . | . . . . . . . . . . . . Parts Scanalyzed 7 | . . 6 1 . . . . . . . . Part Schematics Acquired 7 | . . 6 1 . . . . . . . . Parts Damaged . | . . . . . . . . . . . . Bothacking | -11 -10 -9 -8 -7 -7 -7 -7 -7 -7 -7 -7 ------------ Run | Jun Mat Mat Mat Fac Was Fac Gar Fac Low Low Dat Used RIF Installer . | . . . . . . . . . . . . Robots Hacked . | . . . . . . . . . . . . Non-combat . | . . . . . . . . . . . . Combat . | . . . . . . . . . . . . Robot Hacks Applied . | . . . . . . . . . . . . Relay Couplers Released 24 | . . . . . . . 24 . . . . Machine Destruction 24 | . . . . . . . 24 . . . . Fabnet Peak Effective % . | . . . . . . . . . . . . Robots Rewired 3 | . . . . . . . 3 . . . . Allies Hacked . | . . . . . . . . . . . . Hacks Repelled . | . . . . . . . . . . . . Allies | -11 -10 -9 -8 -7 -7 -7 -7 -7 -7 -7 -7 -------- Run | Jun Mat Mat Mat Fac Was Fac Gar Fac Low Low Dat Total Allies 30 | . . . . 3 20 . 4 3 . . . Largest Group 22 | . . . . 3 22 20 19 17 . . . Highest-Rated Group 579 | . . . . 93 579 551 537 438 . . . Highest-Rated Ally 35 | . . . . 31 35 35 35 35 . . . Total Orders . | . . . . . . . . . . . . Ally Attacks 200 | . . . . 13 3 3 146 35 . . . Total Damage 5608 | . . . . 209 240 42 4128 989 . . . Kills 48 | . . . . 1 2 1 34 10 . . . Allies Corrupted . | . . . . . . . . . . . . Allies Melted . | . . . . . . . . . . . . Intel | -11 -10 -9 -8 -7 -7 -7 -7 -7 -7 -7 -7 ------- Run | Jun Mat Mat Mat Fac Was Fac Gar Fac Low Low Dat Robot Analysis Total 136 | . 2 1 2 . . . . . . . 131 Derelict Logs Recovered 2 | . . . . . . . . . 2 . . Drone Launches . | . . . . . . . . . . . . Drone Recoveries . | . . . . . . . . . . . . Exploration | -11 -10 -9 -8 -7 -7 -7 -7 -7 -7 -7 -7 ------------- Run | Jun Mat Mat Mat Fac Was Fac Gar Fac Low Low Dat Turns Passed 11523 | 1 435 1255 2214 2436 1061 84 1679 1047 664 393 254 Spaces Moved 4684 | 1 203 441 707 894 456 41 830 532 293 157 129 Core . | . . . . . . . . . . . . Treads 4346 | . . 307 707 894 456 41 830 532 293 157 129 Legs 338 | 1 203 134 . . . . . . . . . Wheels . | . . . . . . . . . . . . Hover . | . . . . . . . . . . . . Flight . | . . . . . . . . . . . . Fastest Speed 120 | 120 120 240 235 238 160 160 160 160 160 160 160 Average Speed 200 | 120 170 246 237 240 174 160 160 160 213 160 160 Slowest Speed 320 | 120 190 260 320 245 245 160 160 160 240 160 160 Overloaded Moves . | . . . . . . . . . . . . Propulsion Burnouts . | . . . . . . . . . . . . Robots Hopped . | . . . . . . . . . . . . Cave-ins Triggered . | . . . . . . . . . . . . Exploration Rate (%) 46 | 2 48 32 68 31 96 3 96 20 57 34 76 Regions Visited 11 Branch Regions 3 Pre-discovered Areas 37 | . . . . . . . . . 1 . 36 Known Exits Taken 3 | . . . . . . 1 . 1 1 . . Unknown Exits Taken 5 | 1 1 1 1 . . . . . . 1 . Scrap Searched 3 | . . . . . . . . . 2 1 . Spaces Dug . | . . . . . . . . . . . . Terrain Destroyed 223 | . 7 3 . 79 . . 75 59 . . . Melee . | . . . . . . . . . . . . Projectile . | . . . . . . . . . . . . AOE 223 | . 7 3 . 79 . . 75 59 . . . Terrain Rammed . | . . . . . . . . . . . . Walls Destroyed . | . . . . . . . . . . . . Machines Disabled . | . . . . . . . . . . . . Actions | -11 -10 -9 -8 -7 -7 -7 -7 -7 -7 -7 -7 --------- Run | Jun Mat Mat Mat Fac Was Fac Gar Fac Low Low Dat Total 6258 | 2 258 554 1085 1049 735 59 1113 665 310 270 158 Wait 907 | . 4 6 209 51 226 18 212 88 1 92 . Move 4675 | . 202 440 706 894 455 41 829 531 292 156 129 Hop . | . . . . . . . . . . . . Pick Up 107 | . 12 30 31 10 13 . 4 4 2 1 . Fast Attach 28 | . 3 4 7 4 8 . 1 1 . . . Attach 45 | . 2 7 12 9 1 . . 2 1 2 9 Detach 12 | . 1 4 . 1 2 . . . . . 4 Swap 34 | . 4 1 12 7 1 . 5 . 1 2 1 Drop 106 | 2 6 25 26 8 27 . 5 2 3 . 2 Fire 311 | . 24 37 79 62 1 . 35 34 10 17 12 Melee 1 | . . . . . . . . . . . 1 Ram . | . . . . . . . . . . . . Kick . | . . . . . . . . . . . . Crush 9 | . . . 3 3 . . . 3 . . . Escape Stasis 1 | . . . . . . . 1 . . . . Rewire 22 | . . . . . 1 . 21 . . . . Trap . | . . . . . . . . . . . . Miscellaneous . | . . . . . . . . . . . . Route ------- -11/Junkyard -10/Materials (discovered 2 exits: *Mat / [*Min]) -9/Materials -8/Materials -7/Factory -7/Waste -7/Factory -7/Garrison (discovered 3 exits: *Fac x3) -7/Factory (discovered 3 exits: Sto / *Low x2) -7/Lower Caves -7/Lower Caves -7/Data Miner (discovered 1 exit: [*Pro]) History --------- Turn | Location | Event 2 | -11/Junkyard | Discovered new exit (range 0) 2 | -11/Junkyard | Entered Materials 151 | -10/Materials | Discovered new exit (range 10) 317 | -10/Materials | Build established: Mutant 351 | -10/Materials | Discovered new exit (range 14) 437 | -10/Materials | Entered another Materials area 437 | -9/Materials | Evolved 2 slots: Utility x1, Weapon x1 744 | -9/Materials | Build established: Tank 1305 | -9/Materials | Discovered new exit (range 3) 1692 | -9/Materials | Entered another Materials area 1692 | -8/Materials | Evolved 2 slots: Propulsion x1, Utility x1 1733 | -8/Materials | Build established: Scavenger-Mutant 1806 | -8/Materials | Garrison activated, responded to threat 1871 | -8/Materials | Lost 4 parts (2n1u1w) 1900 | -8/Materials | Destroyed 10 combat bots 1947 | -8/Materials | Lost 3 parts (1n1u1w) 2220 | -8/Materials | Build established: Scavenger-Tank 2641 | -8/Materials | Repaired Hvy. Laser 2687 | -8/Materials | Repaired Lgt. Treads 2726 | -8/Materials | Repaired Hpw. Shotgun 2754 | -8/Materials | Repaired Lgt. Treads 2787 | -8/Materials | Repaired Beam Rifle 3654 | -8/Materials | Build established: Hacker-Tank 3822 | -8/Materials | Discovered new exit (range 9) 3889 | -8/Materials | Central database locked down 3906 | -8/Materials | Entered Factory 3906 | -7/Factory | Evolved 2 slots: Propulsion x1, Utility x1 4193 | -7/Factory | Build established: Hacker-Gunner 4856 | -7/Factory | Build established: Hacker-Tank 4983 | -7/Factory | Garrison activated, responded to threat 5055 | -7/Factory | Lost 5 parts (1p2n1u1w) 5116 | -7/Factory | Discovered new exit (range 7) 5139 | -7/Factory | Identified exit to Storage 5714 | -7/Factory | Build established: Hacker-Mutant 5814 | -7/Factory | Allied Derelicts emerged from ambush trap array 6342 | -7/Factory | Sucked down chute 6342 | -7/Factory | Entered Waste 6343 | -7/Waste | Joined by Warlord forces that had cleared the area 6365 | -7/Waste | 2 allies followed down the chute 6373 | -7/Waste | Build established: Hacker-Tank 7027 | -7/Waste | Discovered new exit (range 16) 7380 | -7/Waste | A Compactor rumbled back to life 7380 | -7/Waste | Allies destroyed C-40 Crusher 7403 | -7/Waste | Entered Factory 7403 | -7/Factory | Accompanied by 20 allies 7469 | -7/Factory | Identified exit to Garrison 7487 | -7/Factory | Entered Garrison 7487 | -7/Garrison | Accompanied by 19 allies 7556 | -7/Garrison | Triggered checkpoint 7600 | -7/Garrison | Triggered checkpoint 7614 | -7/Garrison | Triggered checkpoint 7687 | -7/Garrison | Discovered new exit (range 12) 7732 | -7/Garrison | Phase Generator disabled 7932 | -7/Garrison | Triggered checkpoint 7947 | -7/Garrison | Garrison Relay disabled 8225 | -7/Garrison | Discovered new exit (range 4) 8310 | -7/Garrison | Triggered checkpoint 8344 | -7/Garrison | Garrison Relay disabled 8566 | -7/Garrison | Triggered checkpoint 8584 | -7/Garrison | Triggered checkpoint 8842 | -7/Garrison | Triggered checkpoint 8857 | -7/Garrison | Garrison Relay disabled 8872 | -7/Garrison | Discovered new exit (range 57) 8872 | -7/Garrison | Discovered new exit (range 26) 8872 | -7/Garrison | Discovered new exit (range 62) 8977 | -7/Garrison | Garrison Relay disabled 9042 | -7/Garrison | Triggered checkpoint 9071 | -7/Garrison | Garrison Relay disabled 9136 | -7/Garrison | Rescued a captive Derelict 9166 | -7/Garrison | Entered Factory 9166 | -7/Factory | Accompanied by 14 allies 9283 | -7/Factory | Fabricated B-48 Gladiator? 9584 | -7/Factory | Build established: Commander-Tank 9715 | -7/Factory | Identified exit to Lower Caves 9966 | -7/Factory | First assault squad dispatched 9967 | -7/Factory | Core integrity fell below 50% 10213 | -7/Factory | Entered Lower Caves 10227 | -7/Lower Caves | Met a Warlord Commander 10228 | -7/Lower Caves | Learned location of Warlord (-5) 10230 | -7/Lower Caves | Found Encrypted Comm Array 10329 | -7/Lower Caves | Attracted the attention of an 0b10 checkpoint 10489 | -7/Lower Caves | Encountered a Warlord checkpoint 10520 | -7/Lower Caves | Build established: Hacker-Tank 10722 | -7/Lower Caves | Acquired the password to a Derelict Tinkerer's latest research 10733 | -7/Lower Caves | Found Prototype Special Weapon 10822 | -7/Lower Caves | Identified exit to Lower Caves 10877 | -7/Lower Caves | Entered another Lower Caves area 11134 | -7/Lower Caves | Encountered a Warlord checkpoint 11162 | -7/Lower Caves | Discovered new exit (range 15) 11227 | -7/Lower Caves | Lost 3 parts (2n1u) 11270 | -7/Lower Caves | Entered Data Miner 11273 | -7/Data Miner | Discovered new exit (range 6) 11304 | -7/Data Miner | Met Data Miner 11338 | -7/Data Miner | Learned location of Section 7 (-2) 11338 | -7/Data Miner | Acquired the access code to Warlord's prototype stash 11364 | -7/Data Miner | Received God Mode back door access code from Data Miner 11475 | -7/Data Miner | Interfaced with the Data Conduit 11480 | -7/Data Miner | Identified Molecular Deconstructor 11513 | -7/Data Miner | Core integrity fell below 20% 11524 | -7/Data Miner | Destroyed by Enhanced Grunt with Neutron Cannon Last Messages --------------- 11490_ Concrete disintegrates. 11490_ Concrete destabilizing. 11491_ Hrd. Medium Armor Plating destroyed. 11495_ Concrete disintegrates. 11497_ Entropy package works its way towards Enhanced Grunt core. 11497_ Proton Missile Launcher destroyed. 11499_ Activated siege mode. 11500_ Discarded Imp. Deuterium Engine. 11501_ Enhanced Grunt core destabilizing. 11503_ Enhanced Grunt core entropy levels peaking. 11505_ System corrupted: Substantial component data lost. 11506_ Hvy. Treads destroyed. 11508_ Enhanced Grunt suffers critical hit (Burn). 11511_ Imp. Heat Sink destroyed. 11514_ Enhanced Grunt overheating. 11517_ Enhanced Grunt destroyed. 11520_ Hvy. Treads destroyed. 11522_ Hrd. Medium Armor Plating destroyed. 11524_ System corrupted: Heat flow error (+212). 11524_ Hpw. Shotgun destroyed. Map ----- +----------------------------------------------------+ | | | | | | | | | | | | | | | | | | | | | | | | | | | ?????????????????????????????????????? | | ?????????????????????????????????????? | | ?????????????????????????????????????? | | ?????????????????????????????????????? | | ?????????????????????????????????????# | | ??????###############??????????????### | | ?????"""""""""""""""######????????## | | ????""""""""" """"! # ######## < | | ????"""""""" =%! g | | ????""""" ! g | | ???"""""" g | | ???""""" | | ???"""""" @ | | ????"""""" """""""""""""" | | ????""""""" """"############ | | ????"""""" """""###??????????? | | ?????"""""" " "#####????????????? | | ??????######"## "#????????????????? | | ???????????#"### "#????????????????? | | ???????????#"### "#????????????????? | | ???????????#"## "#????????????????? | | ?????????????## "#????????????????? | | ?????????????# "#????????????????? | | ?????????????### "#????????????????? | | ???????????????# "##???????????????? | | ??????????????## ""#???????????????? | | ???????????#?## ""#???????????????? | | ?????????"##"#"X ""#???????????????? | | ?????????"""""" "####????????????? | | ?????????#""""" X"""""????????????? | | ?????????###"#"X "##"#????????????? | | ???????????#?## X""""#????????????? | | ??????????????## "##"#????????????? | | ???????????????#######???????????????? | | ?????????????????????????????????????? | | ?????????????????????????????????????? | | ?????????????????????????????????????? | +----------------------------------------------------+ Best States ------------- Heat Dissipation 65 Energy Generation 23 Energy Capacity 800 Matter Stores 300 Matter Capacity 300 Sight Range 16 Terrain Scan Density 10 Armor Coverage 450 Resistance: KI 20 Resistance: TH 20 Resistance: EX 20 Resistance: EM 20 Resistance: I 20 Resistance: S 20 Resistance: P 20 Evasion (%) 45 Recoil Reduction 4 Particle Charging 15 Offensive Hacking 20 Defensive Hacking 10 Item Schematics ----------------- Lgt. Treads | -9/Materials | Scanalyzed Lgt. Nuclear Core | -9/Materials | Scanalyzed Hcp. Storage Unit | -9/Materials | Scanalyzed Med. Armor Plating | -9/Materials | Scanalyzed Imp. Ion Engine | -9/Materials | Scanalyzed Lgt. Armor Plating | -9/Materials | Scanalyzed System Shield | -8/Materials | Scanalyzed Combat Drone Bay | -7/Data Miner | Free Lgt. Regenerative Plating | -7/Data Miner | Free Cld. Aerolev Unit | -7/Data Miner | Free Thermal Defense Suite | -7/Data Miner | Free Com. Ion Cannon | -7/Data Miner | Free Antigrav System | -7/Data Miner | Free Imp. Thermal Shield | -7/Data Miner | Free Wave Gun | -7/Data Miner | Free Adv. Shield Generator | -7/Data Miner | Free Field Propulsion Array | -7/Data Miner | Free Adv. Thermal Shield | -7/Data Miner | Free Robot Schematics ------------------ G-47 Trooper | -8/Materials | Hacked S-27 Virus | -7/Data Miner | Free M-14 Sweeper | -7/Data Miner | Free G-50 Soldier | -7/Data Miner | Free L-41 Fighter | -7/Data Miner | Free B-48 Gladiator | -7/Data Miner | Free Fabricated ------------ B-48 Gladiator | x3 | -7/Factory | Preloaded Alien Tech Used ----------------- None Achievements -------------- None Challenges ------------ None Game ------ Seed ExplosiveLauncherMapper Manual? 0 Play Time 01:30:33 Cumulative 175.6 hours Start 2023.05.25 @ 10:04:18 End 2023.05.25 @ 11:50:14 Sessions 1 Manual Loads 0 Difficulty Adventurer Special Mode None Game No. 141 Rogue 63 Adventurer 52 Explorer 26 Win Type - Total 1 Types 1/0/0/0/0/0/0/0/0 Lore% 54 Gallery% 66 Achievement% 67 Wizard Run 0 Options --------- ASCII 0 Keyboard 0 Movement Mouse Keybinds 0 Fullscreen 0 Font 16/Smallcaps Map View 76x50 Tactical HUD 1 Map Filters NONE Filters BRIGHTNESS(115)|SATURATION(100)|LOW_CONTRAST(0,16,30) Steam 1 RUN: 4d62da8f-9a31-4cde-9ba7-7eb922a9bba1